bitfinex-derivatives/quotes_ETHF0:USTF0_20250404
["timestamp","ask_amount","ask_price","bid_price","bid_amount"]
[1743786968949,5.58079088,1791.3,1791.2,5.8127]
[1743786969249,1.2886,1791.6,1791.5,1.11691]
[1743786969448,1.29576284,1791.9,1791.5,5.29229]
[1743786969647,6.87655372,1791.9,1791.8,1.11673]
[1743786970145,5.58915372,1791.9,1791.8,4.32453]
[1743786970350,0.00836284,1791.9,1791.8,4.32453]
[1743786970747,5.58915372,1791.9,1791.8,4.32453]
[1743786970943,1.11673,1791.8,1791.7,7.08115]
[1743786971250,2.52793,1791.8,1791.7,7.08115]
[1743786971448,2.52793,1791.8,1791.7,46.54295]
[1743786971748,1.4112,1791.8,1791.7,46.54295]
[1743786972551,0.00836284,1791.9,1791.8,1.11673]
[1743786972950,5.58915372,1791.9,1791.7,45.12456]
[1743786973152,2.836,1791.8,1791.7,45.12456]
[1743786973653,0.00836284,1791.9,1791.8,1.11673]
[1743786973956,5.58915372,1791.9,1791.8,2.63313]
[1743786974352,0.00836284,1791.9,1791.8,2.63313]
[1743786974643,5.58915372,1791.9,1791.8,2.63313]
[1743786975448,7.04095372,1791.9,1791.8,2.63313]
[1743786975658,7.04095372,1791.9,1791.8,1.11673]
[1743786975957,8.15761372,1791.9,1791.8,1.11673]
[1743786976256,8.71605372,1791.9,1791.8,1.11673]
[1743786976646,7.04095372,1791.9,1791.8,1.11673]
[1743786977142,5.58915372,1791.9,1791.8,2.51443]
[1743786977347,5.58915372,1791.9,1791.8,3.67733]
[1743786977549,5.58915372,1791.9,1791.8,4.41627614]
[1743786977847,5.58915372,1791.9,1791.6,40.8]
[1743786978052,1.11679,1791.7,1791.6,41.91682]
[1743786978244,1.11679,1791.7,1791.6,41.53919495]
[1743786978453,1.11685,1791.6,1791.5,5.72238]
[1743786978652,5.58079088,1791.6,1791.5,2.51458]
[1743786978852,7.06299088,1791.6,1791.5,46.52238]
[1743786979356,8.17984088,1791.6,1791.5,47.26258849]
[1743786979660,8.17984088,1791.6,1791.5,44.74800849]
[1743786979957,7.06299088,1791.6,1791.5,45.86557783]
[1743786980256,5.58079088,1791.6,1791.5,45.86620301]
[1743786980446,6.69764088,1791.6,1791.5,45.86620301]
[1743786980648,5.58079088,1791.6,1791.5,45.86620301]
[1743786980851,5.58079088,1791.6,1791.5,47.34600301]
[1743786981157,8.14524088,1791.6,1791.5,47.34600301]
[1743786981356,8.14524088,1791.6,1791.5,40.8]
[1743786981656,1.11702,1791.4,1791.3,1.117]
[1743786981855,8.14536088,1791.5,1791.4,1.11698]
[1743786982251,1.11698,1791.4,1791.3,41.91699]
[1743786982551,9.32487088,1791.4,1791.3,41.54158855]
[1743786982854,1.1171,1791.2,1791.1,1.12551284]
[1743786983052,1.1171,1791.2,1791.1,0.00836284]
[1743786983359,1.11733,1790.9,1790.8,1.11732]
[1743786983558,2.79379,1790.6,1790.1,9.0778]
[1743786983747,1.11766,1790.3,1790.2,3.33564036]
[1743786983952,11.22519088,1790.5,1790.2,44.13581305]
[1743786984256,1.11766,1790.3,1790.2,43.39321]
[1743786984455,6.69844088,1790.4,1790.3,1.11766]
[1743786984650,4.22036284,1790.5,1790.4,1.1176]
[1743786984861,5.58915372,1790.5,1790.4,1.1176]
[1743786985056,5.32919,1791.1,1790.6,2.7937]
[1743786985351,5.58079088,1791.0,1790.9,1.11729]
[1743786985559,5.58079088,1791.0,1790.9,2.63009]
[1743786986360,5.58079088,1791.0,1790.9,42.3128]
[1743786986553,6.69802088,1791.0,1790.9,42.3128]
[1743786986750,6.69802088,1791.0,1790.9,40.8]
[1743786987360,7.88462088,1791.0,1790.9,40.8]
[1743786987762,6.76739088,1791.0,1790.9,40.8]
[1743786988158,7.88462088,1791.0,1790.9,40.8]
[1743786988656,6.76739088,1791.0,1790.9,41.91729]
[1743786988860,5.58079088,1791.0,1790.9,43.35059]
[1743786989160,5.58079088,1791.0,1790.9,44.46359]
[1743786989362,6.69802088,1791.0,1790.9,40.8]
[1743786989758,12.29279088,1791.0,1790.6,3.2078]
[1743786989966,3.2078,1790.7,1790.3,5.7541]
[1743786990256,1.1176,1790.4,1790.3,1.4333]
[1743786990458,1.11765,1790.4,1790.2,0.00836284]
[1743786990652,5.58079088,1790.3,1790.2,0.00836284]
[1743786990856,5.58079088,1790.4,1790.3,1.11766]
[1743786991059,5.58079088,1790.3,1790.2,41.92604284]
[1743786991360,1.11766,1790.3,1790.2,40.80836284]
[1743786991567,6.69845088,1790.3,1790.2,40.80836284]
[1743786991757,7.92475088,1790.3,1790.2,40.80836284]
[1743786992866,6.80709088,1790.3,1790.2,40.80836284]
[1743786993062,6.80709088,1790.3,1790.2,41.92608284]
[1743786993564,5.58079088,1790.3,1790.2,41.92608284]
[1743786993958,6.69845088,1790.3,1790.2,40.80836284]
[1743786994361,5.58079088,1790.3,1790.2,41.92608284]
[1743786994955,5.58079088,1790.3,1790.2,45.13388284]
[1743786995157,5.58079088,1790.3,1790.2,41.92608284]
[1743786995558,6.69845088,1790.3,1790.2,40.80836284]
[1743786997364,6.69845088,1790.3,1790.2,41.92608284]
[1743786997664,6.69845088,1790.3,1790.2,40.80836284]
[1743786997863,6.69845088,1790.3,1790.2,41.92608284]
[1743786998561,1.11763,1790.4,1790.3,1.11761]
[1743786998754,6.69839088,1790.4,1790.3,2.58611]
[1743786998955,6.69839088,1790.4,1790.3,1.4685]
[1743786999159,5.58079088,1790.4,1790.3,5.79396]
[1743786999568,5.58079088,1790.4,1790.3,6.96906]
[1743787000065,1.11747,1790.7,1790.5,1.11749]
[1743787000268,1.11747,1790.7,1790.6,1.4685]
[1743787000455,2.2981,1790.8,1790.6,2.58594]
[1743787000661,5.58079088,1790.7,1790.6,2.58594]
[1743787000970,5.58079088,1790.8,1790.7,1.11741]
[1743787001165,1.11725,1791.0,1790.9,1.11726]
[1743787001364,1.11725,1791.0,1790.9,4.32506]
[1743787001562,0.00836284,1791.1,1791.0,1.11723]
[1743787001765,0.00836284,1791.1,1791.0,2.64313]
[1743787002068,47.78881,1791.6,1791.1,2.79284]
[1743787002069,1.1807,1791.6,1791.1,2.79284]
[1743787002369,5.58079088,1791.5,1791.4,1.11698]
[1743787002563,6.69770088,1791.5,1791.4,42.3259]
[1743787002768,8.24140088,1791.5,1791.4,42.3259]
[1743787003361,7.12449088,1791.5,1791.4,43.44288]
[1743787003565,8.24140088,1791.5,1791.4,43.44288]
[1743787003759,7.12449088,1791.5,1791.4,42.3259]
[1743787003966,7.12449088,1791.5,1791.4,40.8]
[1743787004674,7.12449088,1791.5,1791.4,41.91698]
[1743787004978,7.12449088,1791.5,1791.4,42.2411]
[1743787005168,8.24140088,1791.5,1791.3,1.12536284]
[1743787005366,5.58079088,1791.4,1791.3,4.33316284]
[1743787005770,6.69777088,1791.4,1791.3,0.00836284]
[1743787006073,8.20577088,1791.4,1791.3,0.00836284]
[1743787006776,1.11728,1791.0,1790.8,1.1751]
[1743787007068,1.11729,1790.9,1790.8,1.4781]
[1743787007277,1.11728,1791.0,1790.8,1.11735]
[1743787007577,1.11729,1790.9,1790.7,4.32516]
[1743787007776,1.443,1790.8,1790.7,4.33352284]
[1743787007974,1.11715,1791.2,1790.8,2.79338]
[1743787008178,1.11715,1791.2,1791.0,1.11723]
[1743787008179,5.58079088,1791.1,1791.0,1.11723]
[1743787008672,1.1621,1791.4,1791.1,2.7929]
[1743787008874,5.58079088,1791.3,1791.2,1.1171]
[1743787009176,1.1171,1791.2,1791.1,1.11712]
[1743787009374,8.14089088,1791.2,1791.1,1.11712]
[1743787009580,7.02379088,1791.2,1791.1,1.11712]
[1743787009881,7.02379088,1791.2,1790.9,4.32504]
[1743787010076,1.11723,1791.0,1790.9,3.2078]
[1743787010679,6.97749088,1791.0,1790.8,1.11734]
[1743787010974,5.58079088,1790.9,1790.7,3.21616284]
[1743787011178,1.3967,1790.8,1790.7,4.33357284]
[1743787011378,6.97749088,1790.8,1790.7,5.07280365]
[1743787011579,6.97749088,1790.8,1790.7,4.33357284]
[1743787011778,5.58079088,1790.8,1790.7,4.33357284]
[1743787011976,5.6067,1791.1,1790.9,1.11729]
[1743787012177,5.58079088,1791.0,1790.9,4.32509]
[1743787012775,5.58079088,1791.0,1790.9,5.06388052]
[1743787013282,5.58079088,1791.0,1790.9,4.32509]
[1743787013577,5.58079088,1791.0,1790.9,5.06413127]
[1743787013775,2.6519,1791.2,1791.1,1.11716]
[1743787013981,6.69795088,1791.1,1790.9,3.2078]
[1743787014281,7.11759088,1791.1,1791.0,1.11723]
[1743787014476,5.58079088,1791.0,1790.9,4.32504]
[1743787014676,7.11759088,1791.0,1790.9,5.06431158]
[1743787014982,7.11759088,1791.0,1790.9,4.32504]
[1743787015873,5.58079088,1791.0,1790.9,4.32504]
[1743787016086,5.58079088,1791.0,1790.9,5.06488026]
[1743787016781,1.11735,1790.8,1790.7,3.21616284]
[1743787016979,1.11735,1790.8,1790.7,5.07323421]
[1743787017180,5.58079088,1790.8,1790.7,5.07323421]
[1743787017376,7.06599088,1790.8,1790.7,4.33357284]
[1743787017581,5.58079088,1790.8,1790.7,4.33357284]
[1743787017786,1.11733,1790.9,1790.8,1.11735]
[1743787018079,2.60253,1790.9,1790.7,3.21616284]
[1743787018286,2.60253,1790.9,1790.7,0.00836284]
[1743787018287,6.69814088,1790.8,1790.7,0.00836284]
[1743787018582,9.37044088,1790.8,1790.7,0.00836284]
[1743787019485,9.37044088,1790.8,1790.7,1.12577284]
[1743787020074,9.37044088,1790.8,1790.7,0.00836284]
[1743787020781,9.37044088,1790.8,1790.3,3.91822]
[1743787020782,1.11765,1790.4,1790.3,40.8]
[1743787021181,6.69844088,1790.4,1790.3,40.8]
[1743787021488,6.69844088,1790.4,1790.3,41.91766]
[1743787021683,6.74729088,1790.4,1790.3,41.91766]
[1743787021888,5.58079088,1790.4,1790.3,41.91766]
[1743787022185,0.00836284,1790.5,1790.4,1.1176]
[1743787022382,0.00836284,1790.5,1790.4,5.7911]
[1743787022383,5.58915372,1790.5,1790.4,5.7911]
[1743787022586,5.58915372,1790.5,1790.4,7.69831439]
[1743787023180,5.58915372,1790.5,1790.4,5.7911]
[1743787023782,1.11738,1790.8,1790.6,1.11748]
[1743787023990,5.58079088,1790.7,1790.6,4.32528]
[1743787024286,5.58079088,1790.7,1790.5,1.15]
[1743787024287,1.11754,1790.5,1790.4,1.4657]
[1743787024480,8.11669088,1790.6,1790.4,1.4657]
[1743787024687,1.11758,1790.5,1790.3,45.12542]
[1743787024883,1.1728,1790.7,1790.6,1.11748]
[1743787025089,5.58079088,1790.6,1790.5,4.32534]
[1743787025393,8.13221372,1790.8,1790.5,3.94760733]
[1743787025694,2.55146284,1790.8,1790.7,1.11741]
[1743787025880,1.43406284,1790.8,1790.7,1.11741]
[1743787026191,0.00836284,1790.8,1790.7,5.06477478]
[1743787027496,1.12571284,1790.8,1790.7,5.06477478]
[1743787027685,6.70650372,1790.8,1790.7,3.2078]
[1743787027891,6.70650372,1790.8,1790.7,3.94752261]
[1743787028086,6.70650372,1790.8,1790.7,0.73972261]
[1743787028391,8.38260372,1790.8,1790.4,1.1315]
[1743787028591,1.11748,1790.6,1790.5,0.74008285]
[1743787028786,8.23159088,1790.7,1790.6,1.11748]
[1743787028991,6.69827088,1790.6,1790.5,4.32532]
[1743787029191,7.05249088,1790.6,1790.5,5.06570097]
[1743787030190,7.05249088,1790.6,1790.5,1.85790097]
[1743787030396,8.16997088,1790.6,1790.5,0.74038097]
[1743787030694,7.05249088,1790.6,1790.5,1.85792097]
[1743787030996,5.58079088,1790.6,1790.5,5.06572097]
[1743787031295,6.99469088,1790.6,1790.5,5.06572097]
[1743787031498,6.99469088,1790.6,1790.5,5.06579573]
[1743787033290,8.11217088,1790.6,1790.5,5.06579573]
[1743787033594,6.99469088,1790.6,1790.5,5.06579573]
[1743787034191,5.58079088,1790.6,1790.5,5.06579573]
[1743787034392,0.00836284,1790.8,1790.7,1.11741]
[1743787034692,5.58915372,1790.8,1790.7,5.06566573]
[1743787035091,5.58915372,1790.8,1790.7,1.85907531]
[1743787035391,8.15770372,1790.8,1790.7,0.74166531]
[1743787035797,8.15770372,1790.8,1790.5,4.32529]
[1743787035798,1.11741,1790.7,1790.5,4.32529]
[1743787036104,1.11748,1790.6,1790.5,3.2078]
[1743787036291,6.69827088,1790.6,1790.5,3.95063784]
[1743787036491,8.14947088,1790.6,1790.5,3.95063784]
[1743787036692,1.1176,1790.4,1790.3,40.8]
[1743787036897,1.1176,1790.4,1790.3,42.66085159]
[1743787037092,6.69839088,1790.4,1790.3,41.54319159]
[1743787037393,1.11766,1790.3,1790.2,1.12608284]
[1743787037592,9.46545088,1790.3,1790.2,0.75138855]
[1743787037797,9.46545088,1790.3,1790.2,41.55138855]
[1743787037990,8.34779088,1790.3,1790.2,40.80836284]
[1743787038198,9.46545088,1790.3,1790.2,41.92608284]
[1743787038395,5.58079088,1790.3,1790.2,45.87683304]
[1743787038601,2.7793,1790.5,1790.4,1.1176]
[1743787038899,2.7793,1790.5,1790.4,5.06811931]
[1743787039101,8.36009088,1790.5,1790.4,5.06811931]
[1743787039298,7.12559088,1790.5,1790.4,5.06811931]
[1743787039600,7.12559088,1790.5,1790.4,1.86031931]
[1743787039798,7.12559088,1790.5,1790.4,5.06811931]
[1743787040601,5.58079088,1790.5,1790.4,5.06811931]
[1743787040897,6.69833088,1790.5,1790.4,0.74271931]
[1743787041104,8.14853088,1790.5,1790.4,0.74271931]
[1743787041801,1.1176,1790.4,1790.3,1.11761]
[1743787042000,9.30769088,1790.4,1790.3,0.74332493]
[1743787042303,9.30769088,1790.4,1790.3,1.86098493]
[1743787042513,8.19009088,1790.4,1790.3,1.86098493]
[1743787042704,1.1211,1790.6,1790.5,1.11754]
[1743787043003,3.76438,1790.6,1790.5,1.86086493]
[1743787043197,8.22769088,1790.6,1790.5,1.86086493]
[1743787043401,1.1591,1790.7,1790.5,1.86086493]
[1743787043402,0.00836284,1790.8,1790.7,1.11741]
[1743787043605,5.58915372,1790.8,1790.7,5.06853493]
[1743787043804,5.58915372,1790.8,1790.7,6.54353493]
[1743787044105,5.58915372,1790.8,1790.7,6.54292559]
[1743787045603,0.00836284,1790.8,1790.7,6.54292559]
[1743787046907,1.67621,1791.4,1791.2,1.1171]
[1743787047107,7.07289088,1791.3,1791.2,1.1171]
[1743787047606,8.18993088,1791.3,1791.2,1.1171]
[1743787048306,7.07289088,1791.3,1791.2,1.1171]
[1743787048507,8.18993088,1791.3,1791.2,1.1171]
[1743787048707,8.18997088,1791.3,1791.1,2.62981284]
[1743787048905,7.07289088,1791.2,1791.1,2.62981284]
[1743787049601,7.07289088,1791.2,1791.1,3.37156464]
[1743787050306,7.07289088,1791.2,1791.1,1.86726464]
[1743787050502,8.18999088,1791.2,1791.1,0.75011464]
[1743787050703,11.39779088,1791.2,1791.1,0.00836284]
[1743787051007,1.1174,1790.8,1790.6,3.2078]
[1743787051307,2.3547,1790.7,1790.5,1.11752]
[1743787051507,4.97483,1790.7,1790.6,1.85952117]
[1743787051707,5.58079088,1790.6,1790.4,1.11758]
[1743787051910,1.5027,1790.5,1790.4,1.11758]
[1743787052112,7.08349088,1790.5,1790.4,5.0675487]
[1743787052909,7.08349088,1790.5,1790.4,5.0675687]
[1743787052910,8.20103088,1790.5,1790.4,5.0675687]
[1743787053107,8.20103088,1790.5,1790.4,3.9499687]
[1743787053710,8.20103088,1790.5,1790.4,3.2078]
[1743787054206,7.08349088,1790.5,1790.4,5.06823621]
[1743787054706,7.08349088,1790.5,1790.4,4.3254]
[1743787055004,8.20103088,1790.5,1790.4,3.2078]
[1743787055710,1.1176,1790.4,1790.3,1.12602284]
[1743787055912,12.38209088,1790.4,1790.3,0.00836284]
[1743787056113,12.94129088,1790.4,1790.3,0.00836284]
[1743787057810,2.3547,1790.7,1790.3,0.00836284]
[1743787058011,6.69831088,1790.6,1790.5,1.11753]
[1743787058206,1.11754,1790.5,1790.4,1.11756]
[1743787058412,8.24043088,1790.5,1790.4,1.11756]
[1743787058614,8.24043088,1790.5,1790.4,0.74251574]
[1743787058912,1.1176,1790.4,1790.3,0.00836284]
[1743787059112,8.24049088,1790.4,1790.3,0.00836284]
[1743787060413,8.24049088,1790.4,1790.3,1.12602284]
[1743787060613,8.24049088,1790.4,1790.3,0.00836284]
[1743787061413,8.24049088,1790.4,1790.3,1.12602284]
[1743787061714,8.24049088,1790.4,1790.3,0.00836284]
[1743787062107,8.24049088,1790.4,1790.3,2.22807903]
[1743787062309,8.24049088,1790.4,1790.3,1.48526284]
[1743787062512,8.24049088,1790.4,1790.3,3.34564447]
[1743787062713,5.58079088,1790.4,1790.3,6.55344447]
[1743787063212,1.11755,1790.5,1790.4,1.1176]
[1743787063412,6.69834088,1790.5,1790.4,3.33722163]
[1743787063817,5.58079088,1790.5,1790.4,3.33722163]
[1743787064017,6.69833088,1790.5,1790.4,3.33722163]
[1743787064320,5.58079088,1790.5,1790.4,3.33722163]
[1743787064618,6.69833088,1790.5,1790.4,3.33722163]
[1743787064914,5.58079088,1790.5,1790.4,3.33722163]
[1743787065114,6.69833088,1790.5,1790.4,2.21962163]
[1743787065313,1.1176,1790.4,1790.3,0.00836284]
[1743787065622,10.52909088,1790.4,1790.3,0.00836284]
[1743787067015,9.41149088,1790.4,1790.3,1.12602284]
[1743787067221,9.41149088,1790.4,1790.3,1.86848436]
[1743787067518,9.41149088,1790.4,1790.3,1.86845596]
[1743787067826,10.52909088,1790.4,1790.3,42.66845596]
[1743787068017,9.41149088,1790.4,1790.3,41.92602284]
[1743787068217,10.52909088,1790.4,1790.3,42.66866223]
[1743787068416,9.41149088,1790.4,1790.3,42.66866223]
[1743787068620,10.52909088,1790.4,1790.3,42.66866223]
[1743787068823,9.41149088,1790.4,1790.3,41.92602284]
[1743787069122,10.52909088,1790.4,1790.3,40.80836284]
[1743787069319,10.52909088,1790.4,1790.3,0.00836284]
[1743787070021,1.11779,1790.1,1790.0,40.8]
[1743787070221,1.11779,1790.1,1790.0,42.66030686]
[1743787070417,6.69858088,1790.1,1790.0,42.66030686]
[1743787070718,6.69858088,1790.1,1790.0,40.8]
[1743787071824,5.58079088,1790.1,1790.0,41.91785]
[1743787072028,6.69858088,1790.1,1790.0,47.39220985]
[1743787072217,7.02689088,1790.1,1790.0,47.39215937]
[1743787072416,8.14468088,1790.1,1790.0,47.39215937]
[1743787072716,8.14468088,1790.1,1790.0,44.18432569]
[1743787072922,8.14468088,1790.1,1790.0,47.39198653]
[1743787073126,8.14468088,1790.1,1790.0,44.18401135]
[1743787073322,8.14468088,1790.1,1790.0,42.3238]
[1743787073620,8.14468088,1790.1,1790.0,40.8]
[1743787074422,1.11785,1790.0,1789.9,0.00836284]
[1743787074623,10.52474088,1790.0,1789.9,1.12627284]
[1743787075228,10.52474088,1790.0,1789.9,0.00836284]
[1743787076327,10.52474088,1790.0,1789.9,1.86889803]
[1743787076619,10.52474088,1790.0,1789.9,0.00836284]
[1743787078617,10.52474088,1790.0,1789.9,1.12627284]
[1743787078820,0.00836284,1790.2,1789.9,0.75152872]
[1743787079019,5.58079088,1790.1,1790.0,5.06881588]
[1743787079222,6.69858088,1790.1,1790.0,3.38321588]
[1743787079425,6.69858088,1790.1,1790.0,6.59101588]
[1743787079624,5.58079088,1790.1,1790.0,6.59101588]
[1743787079820,5.58079088,1790.1,1790.0,6.59137917]
[1743787080018,6.69858088,1790.1,1790.0,6.59137917]
[1743787080230,6.69858088,1790.1,1790.0,5.47352917]
[1743787080419,6.69858088,1790.1,1790.0,6.59137917]
[1743787080622,1.54586284,1790.2,1790.1,1.11779]
[1743787080623,0.00836284,1790.2,1790.1,1.11779]
[1743787080816,0.00836284,1790.2,1790.1,3.39701917]
[1743787081122,0.00836284,1790.2,1790.1,5.15349]
[1743787081318,0.00836284,1790.2,1790.1,5.89775721]
[1743787083126,1.11749,1790.6,1790.3,2.79408]
[1743787083431,2.62787,1790.7,1790.5,4.32531]
[1743787083622,2.62787,1790.7,1790.6,2.26066721]
[1743787084026,8.20866088,1790.7,1790.6,2.26066721]
[1743787084330,2.7937,1790.6,1790.1,4.32555]
[1743787084633,1.1177,1790.3,1790.2,0.74426071]
[1743787084933,2.79431,1790.3,1789.9,0.00836284]
[1743787085130,1.11784,1790.1,1790.0,0.74437457]
[1743787085337,1.11785,1790.0,1789.9,0.00836284]
[1743787085524,2.35875,1790.0,1789.9,0.75270883]
[1743787085728,7.93954088,1790.0,1789.9,0.75270883]
[1743787085929,9.43364088,1790.0,1789.9,0.75270883]
[1743787086333,8.31579088,1790.0,1789.9,1.87061883]
[1743787086830,8.31579088,1790.0,1789.9,3.33531883]
[1743787087228,9.43364088,1790.0,1789.9,2.21740883]
[1743787087434,9.43364088,1790.0,1789.9,0.75270883]
[1743787087639,9.43364088,1790.0,1789.9,1.87061883]
[1743787088343,9.43364088,1790.0,1789.9,0.75270883]
[1743787088539,9.43364088,1790.0,1789.9,1.87061883]
[1743787088844,5.58079088,1790.0,1789.9,1.87061883]
[1743787089042,5.58079088,1790.0,1789.9,3.35081883]
[1743787089347,2.6364,1790.1,1790.0,1.11785]
[1743787089533,8.21719088,1790.1,1790.0,3.34239599]
[1743787089737,8.21719088,1790.1,1790.0,6.55019599]
[1743787089938,9.33498088,1790.1,1790.0,2.22454599]
[1743787090238,1.11785,1790.0,1789.9,0.00836284]
[1743787090438,1.11797,1789.8,1789.7,40.8]
[1743787090642,4.32577,1789.8,1789.7,41.54413727]
[1743787090841,9.90656088,1789.8,1789.7,41.54413727]
[1743787091041,1.11816,1789.5,1789.4,1.4802]
[1743787091242,1.11816,1789.5,1789.4,0.74411446]
[1743787091435,6.69895088,1789.5,1789.4,0.74411446]
[1743787091637,1.11828,1789.4,1789.3,1.12660284]
[1743787091844,8.9218,1789.4,1788.9,3.2078]
[1743787092140,1.1186,1788.8,1788.7,1.4534]
[1743787092342,1.11866,1788.7,1788.6,8.6764059]
[1743787092542,9.46985088,1788.7,1788.6,8.6764059]
[1743787092739,11.96985088,1788.7,1788.6,8.6764059]
[1743787092938,1.11872,1788.6,1788.5,40.8]
[1743787093138,11.42131088,1788.6,1788.5,40.8]
[1743787093449,1.11879,1788.5,1788.4,8.6764059]
[1743787093650,8.21358088,1788.5,1788.4,8.6764059]
[1743787093850,12.41358088,1788.5,1788.4,8.6764059]
[1743787094043,12.41358088,1788.5,1788.4,49.4764059]
[1743787094542,8.21358088,1788.5,1788.4,49.4764059]
[1743787095744,7.09479088,1788.5,1788.4,49.4764059]
[1743787095951,5.58079088,1788.5,1788.4,52.1067559]
[1743787096150,5.58079088,1788.5,1788.4,55.3145559]
[1743787096340,5.58079088,1788.5,1788.4,52.1067559]
[1743787096850,6.69958088,1788.5,1788.4,45.5193]
[1743787097043,5.58079088,1788.5,1788.4,46.63815]
[1743787097239,0.00838645,1788.6,1788.4,46.63812]
[1743787097240,1.12716645,1788.6,1788.4,46.63812]
[1743787097548,5.58079088,1788.5,1788.4,46.63812]
[1743787097751,6.69958088,1788.5,1788.4,45.5193]
[1743787097944,8.24218088,1788.5,1788.4,44.0078]
[1743787098553,8.24218088,1788.5,1788.4,45.12665]
[1743787098848,5.58079088,1788.5,1788.4,45.12665]
[1743787099046,0.00838645,1788.6,1788.5,1.11879]
[1743787099252,5.58917733,1788.6,1788.5,2.60209]
[1743787100147,1.11844,1789.1,1788.9,1.11852]
[1743787100448,40.6431,1789.8,1789.1,2.79597]
[1743787100649,7.02269088,1789.7,1789.4,1.1182]
[1743787100844,7.02269088,1789.7,1789.5,40.8]
[1743787101149,5.58079088,1789.6,1789.5,41.91814]
[1743787101450,5.58079088,1789.6,1789.5,45.12594]
[1743787101850,5.58079088,1789.6,1789.5,45.12596]
[1743787102050,0.00838645,1789.8,1789.7,1.11804]
[1743787102351,0.00838645,1789.8,1789.7,4.32584]
[1743787103748,5.58917733,1789.8,1789.7,4.32584]
[1743787104047,6.70714733,1789.8,1789.7,3.2078]
[1743787104252,5.58917733,1789.8,1789.7,3.2078]
[1743787104550,5.58917733,1789.8,1789.7,4.32584]
[1743787104753,0.00838645,1789.8,1789.7,4.32584]
[1743787105247,0.00838645,1789.8,1789.7,11.02584]
[1743787105452,1.4929,1790.3,1790.2,1.11772]
[1743787105852,1.1845,1790.7,1790.2,41.91772]
[1743787106148,1.4929,1790.8,1790.7,1.11741]
[1743787106354,5.58079088,1790.9,1790.8,1.11735]
[1743787106556,5.58917733,1790.9,1790.8,4.32515]
[1743787107252,0.00838645,1790.9,1790.8,6.82515]
[1743787107754,5.58917733,1790.9,1790.8,4.32515]
[1743787108056,5.58917733,1790.9,1790.8,45.12515]
[1743787108256,7.10817733,1790.9,1790.8,45.12515]
[1743787108755,0.00838645,1790.9,1790.8,45.12515]
[1743787108957,5.58917733,1790.9,1790.8,45.12515]
[1743787109350,0.00838645,1790.9,1790.8,45.12515]
[1743787109553,5.58917733,1790.9,1790.8,41.91735]
[1743787109758,5.58917733,1790.9,1790.7,7.41518645]
[1743787109759,6.99977733,1790.9,1790.7,0.00838645]
[1743787110050,5.58079088,1790.8,1790.7,0.00838645]
[1743787110250,5.58079088,1790.8,1790.7,1.12579645]
[1743787111052,1.41898645,1790.9,1790.8,1.11735]
[1743787111253,0.00838645,1790.9,1790.8,4.32515]
[1743787111453,1.4106,1791.4,1791.3,1.11704]
[1743787111654,6.99139088,1791.4,1791.3,1.11704]
[1743787112254,5.58079088,1791.4,1791.3,5.76034]
[1743787113855,0.00838645,1791.5,1791.4,1.11698]
[1743787114055,0.00838645,1791.5,1791.4,2.64108]
[1743787114558,0.00838645,1791.5,1791.4,43.44108]
[1743787115554,5.58917733,1791.5,1791.4,1.11698]
[1743787115754,5.58917733,1791.5,1791.4,4.32478]
[1743787116056,5.58917733,1791.5,1791.4,45.12478]
[1743787116259,0.00838645,1791.5,1791.4,45.12478]
[1743787116464,1.1197,1792.0,1791.9,1.11666]
[1743787116961,6.70049088,1792.0,1791.8,1.11668]
[1743787117153,6.69745088,1791.9,1791.8,1.11668]
[1743787117354,6.69747088,1791.9,1791.8,1.11673]
[1743787117554,5.58079088,1791.9,1791.8,1.11673]
[1743787117858,7.03009088,1791.9,1791.8,1.11673]
[1743787120058,5.58079088,1791.9,1791.8,1.11673]
[1743787120563,1.11673,1791.8,1791.7,0.00838645]
[1743787120752,9.34392088,1791.8,1791.7,0.00838645]
[1743787120955,6.69752088,1791.8,1791.7,0.00838645]
[1743787121157,5.58079088,1791.8,1791.7,1.12517645]
[1743787121968,5.58079088,1791.8,1791.7,4.33297645]
[1743787121969,7.06049088,1791.8,1791.7,4.33297645]
[1743787123357,5.58079088,1791.8,1791.7,4.33297645]
[1743787124060,1.4797,1791.9,1791.7,4.33297645]
[1743787124061,1.4797,1791.9,1791.8,1.11673]
[1743787124257,7.06049088,1791.9,1791.8,1.11673]
[1743787125863,0.00838645,1792.0,1791.9,1.11666]
[1743787126066,0.00838645,1792.0,1791.9,4.32446]
[1743787126364,6.45e-06,1792.0,1791.9,11.01646]
[1743787127361,6.45e-06,1792.0,1791.9,8.51646]
[1743787127567,5.58079733,1792.0,1791.9,4.32446]
[1743787127960,7.12039733,1792.0,1791.9,4.32446]
[1743787131862,1.53960645,1792.0,1791.9,4.32446]
[1743787132164,6.45e-06,1792.0,1791.9,4.32446]
[1743787132468,6.45e-06,1792.0,1791.9,5.06230358]
[1743787132667,6.45e-06,1792.0,1791.9,5.06224722]
[1743787133871,6.45e-06,1792.0,1791.9,7.56224722]
[1743787134560,1.5209,1792.7,1792.6,1.11623]
[1743787134867,1.6865,1793.0,1792.9,1.11604]
[1743787135075,6.70889088,1793.0,1792.9,1.11604]
[1743787135268,5.55664,1793.3,1793.1,1.11588]
[1743787135472,5.58079088,1793.2,1792.7,6.97942]
[1743787135672,1.11598,1793.0,1792.8,1.85396758]
[1743787135874,9.90455088,1793.1,1792.8,0.00838645]
[1743787136072,5.58079088,1793.2,1793.1,1.11588]
[1743787136273,8.21759088,1793.2,1793.0,1.11594]
[1743787136571,5.58079088,1793.1,1793.0,1.11594]
[1743787136774,8.21764088,1793.1,1792.8,7.40518645]
[1743787136970,1.5209,1793.1,1793.0,1.11598]
[1743787137369,7.10169088,1793.1,1793.0,1.11598]
[1743787137567,7.10169088,1793.1,1792.9,1.11599]
[1743787137781,5.58079088,1793.0,1792.9,1.11599]
[1743787137974,7.07719088,1793.0,1792.9,1.11599]
[1743787138271,7.07719088,1793.0,1792.9,1.85398206]
[1743787138467,7.07719088,1793.0,1792.9,1.11599]
[1743787138669,7.07719088,1793.0,1792.9,1.11604]
[1743787138870,1.11604,1792.9,1792.8,1.12445645]
[1743787139067,8.19323088,1792.9,1792.8,1.12445645]
[1743787139272,8.19323088,1792.9,1792.8,1.12448645]
[1743787139463,8.19323088,1792.9,1792.8,0.00838645]
[1743787139672,7.07719088,1792.9,1792.8,1.12448645]
[1743787139872,7.07719088,1792.9,1792.8,3.27563226]
[1743787140064,5.58079088,1792.9,1792.8,3.27563226]
[1743787140269,1.4041,1793.1,1793.0,1.11598]